bitfinex-derivatives/quotes_BTCF0:USTF0_20251108
["timestamp","ask_amount","ask_price","bid_price","bid_amount"]
[1762638201605,0.42981151,102330.0,102320.0,0.72328622]
[1762638203510,0.52756561,102330.0,102320.0,0.17592622]
[1762638203804,0.52756561,102330.0,102320.0,0.72328622]
[1762638206807,0.52756561,102330.0,102320.0,0.07816262]
[1762638207000,0.52756561,102330.0,102320.0,0.0977636]
[1762638208309,0.64223723,102330.0,102320.0,0.0977636]
[1762638208805,0.64223723,102330.0,102320.0,0.21243522]
[1762638209197,0.56748439,102330.0,102320.0,0.21243522]
[1762638209392,0.66523839,102330.0,102320.0,0.21243522]
[1762638209802,0.66523839,102330.0,102320.0,0.2906213]
[1762638211810,0.66523839,102330.0,102320.0,0.03099608]
[1762638212006,0.1733736,102320.0,102310.0,0.75980212]
[1762638212207,0.64884522,102320.0,102310.0,0.78964212]
[1762638212404,0.64884522,102320.0,102310.0,0.27322212]
[1762638212606,0.64884522,102320.0,102310.0,0.82058212]
[1762638214002,0.64884522,102320.0,102310.0,0.82158212]
[1762638214205,0.64984522,102320.0,102310.0,0.82158212]
[1762638214509,0.64984522,102320.0,102310.0,0.8983055]
[1762638214910,0.64984522,102320.0,102310.0,0.8973055]
[1762638215613,0.64984522,102320.0,102310.0,0.8973082]
[1762638216311,0.64984522,102320.0,102310.0,0.3499482]
[1762638216511,0.64984522,102320.0,102310.0,0.8973482]
[1762638216702,0.64984522,102320.0,102310.0,0.3499482]
[1762638217104,0.64984522,102320.0,102310.0,0.8973482]
[1762638219813,0.64984522,102320.0,102310.0,0.3499482]
[1762638220016,0.64984522,102320.0,102310.0,0.8973482]
[1762638220211,0.64984522,102320.0,102310.0,0.3499482]
[1762638220513,0.64984522,102320.0,102310.0,0.8973482]
[1762638221015,0.55208162,102320.0,102310.0,0.8973482]
[1762638221616,0.64984522,102320.0,102310.0,0.8973482]
[1762638222116,0.55208162,102320.0,102310.0,0.8973482]
[1762638222619,0.43741,102320.0,102310.0,0.3499482]
[1762638223119,0.3618,102320.0,102310.0,0.47868982]
[1762638223415,0.001,102320.0,102310.0,0.54858039]
[1762638223622,0.001,102320.0,102310.0,0.90938039]
[1762638224010,0.001,102320.0,102310.0,1.15374039]
[1762638224211,0.001,102320.0,102310.0,0.90938039]
[1762638226419,0.001,102320.0,102310.0,1.05768039]
[1762638227409,0.36667151,102330.0,102310.0,1.05768039]
[1762638227410,0.42436151,102330.0,102320.0,0.1585436]
[1762638227610,0.42436151,102330.0,102320.0,0.38788684]
[1762638227916,0.42436151,102330.0,102320.0,0.1585436]
[1762638228119,0.44228151,102330.0,102320.0,0.93528684]
[1762638228917,0.36767151,102330.0,102320.0,0.93528684]
[1762638229107,0.42409151,102330.0,102320.0,0.93528684]
[1762638230518,0.43989151,102330.0,102320.0,0.93628684]
[1762638233227,0.43989151,102330.0,102320.0,0.29112324]
[1762638233228,0.53764561,102330.0,102320.0,0.29112324]
[1762638233522,0.43989151,102330.0,102320.0,0.82157522]
[1762638233721,0.43989151,102330.0,102320.0,0.93624684]
[1762638238224,0.43989151,102330.0,102320.0,0.38888684]
[1762638238424,0.43989151,102330.0,102320.0,0.93624684]
[1762638240726,0.43989151,102330.0,102320.0,0.82157522]
[1762638243225,0.43989151,102330.0,102320.0,0.93624684]
[1762638243428,0.43989151,102330.0,102320.0,0.7069036]
[1762638243634,0.43989151,102330.0,102320.0,0.93624684]
[1762638246232,0.53764561,102330.0,102320.0,0.82157522]
[1762638246422,0.53764561,102330.0,102320.0,0.72381162]
[1762638247530,0.53764561,102330.0,102320.0,0.82157532]
[1762638247734,0.53764561,102330.0,102320.0,0.82057532]
[1762638248431,0.65231723,102330.0,102320.0,0.82057532]
[1762638248632,0.65231723,102330.0,102320.0,0.60814]
[1762638248836,0.65231723,102330.0,102320.0,0.82057532]
[1762638249224,0.65331723,102330.0,102320.0,0.82057532]
[1762638250123,0.55556313,102330.0,102320.0,0.27321532]
[1762638251334,0.44089151,102330.0,102320.0,0.27321532]
[1762638251632,0.65331723,102330.0,102320.0,0.27321532]
[1762638252332,0.44089151,102330.0,102320.0,0.27321532]
[1762638252930,0.4636861,102330.0,102320.0,0.27321532]
[1762638256033,0.4636861,102330.0,102320.0,0.38788694]
[1762638256626,0.44089151,102330.0,102320.0,0.38788694]
[1762638259035,0.00687151,102330.0,102320.0,0.38788694]
[1762638259235,0.00687151,102330.0,102320.0,0.45777751]
[1762638260437,0.00687151,102330.0,102320.0,0.81857751]
[1762638260825,0.00687151,102330.0,102320.0,0.74868694]
[1762638261142,0.00687151,102330.0,102320.0,0.81859488]
[1762638262325,0.06266151,102330.0,102320.0,0.81859488]
[1762638262732,0.06266151,102330.0,102320.0,0.81959488]
[1762638263429,0.06166151,102330.0,102320.0,0.81959488]
[1762638264341,0.07873151,102330.0,102320.0,1.36695488]
[1762638265234,0.07873151,102330.0,102320.0,1.29704694]
[1762638268539,0.06166151,102330.0,102320.0,1.18233508]
[1762638270336,0.06166151,102330.0,102320.0,0.82149508]
[1762638270528,0.07662151,102330.0,102320.0,0.82149508]
[1762638274936,0.43742151,102330.0,102320.0,0.34408302]
[1762638275136,0.43742151,102330.0,102320.0,0.89140302]
[1762638275543,0.43742151,102330.0,102320.0,0.34408302]
[1762638275845,0.43742151,102330.0,102320.0,0.89140302]
[1762638278240,0.43742151,102330.0,102320.0,0.77677164]
[1762638278439,0.43742151,102330.0,102320.0,0.7068637]
[1762638278641,0.43742151,102330.0,102320.0,0.82149508]
[1762638279647,0.43742151,102330.0,102320.0,0.89140302]
[1762638280453,0.43742151,102330.0,102320.0,0.82149508]
[1762638281143,0.43742151,102330.0,102320.0,0.89140302]
[1762638281552,0.43742151,102330.0,102320.0,0.82149508]
[1762638284146,0.43742151,102330.0,102320.0,0.89140302]
[1762638287452,0.43742151,102330.0,102320.0,0.77677164]
[1762638287751,0.43742151,102330.0,102320.0,0.89140302]
[1762638289351,0.06848827,102340.0,102320.0,1.19142302]
[1762638289651,0.06848827,102340.0,102330.0,0.20852523]
[1762638291357,0.06948827,102340.0,102330.0,0.20852523]
[1762638293354,0.43028827,102340.0,102330.0,0.75584523]
[1762638299150,0.43028827,102340.0,102330.0,0.75580523]
[1762638300059,0.43028827,102340.0,102330.0,0.82571317]
[1762638300655,0.43028827,102340.0,102330.0,0.27843317]
[1762638300860,0.43028827,102340.0,102330.0,0.6450341]
[1762638302654,0.06859,102330.0,102320.0,0.16781866]
[1762638302855,0.64177548,102330.0,102320.0,0.64519072]
[1762638303060,0.54402138,102330.0,102320.0,0.64519072]
[1762638303260,0.42939,102330.0,102320.0,0.64519072]
[1762638304961,0.42939,102330.0,102320.0,0.64619072]
[1762638308967,0.5271441,102330.0,102320.0,0.64619072]
[1762638309963,0.64177548,102330.0,102320.0,0.09891072]
[1762638310864,0.64277548,102330.0,102320.0,0.09791072]
[1762638311064,0.64277548,102330.0,102320.0,0.09891072]
[1762638311872,0.06859,102320.0,102310.0,0.17448928]
[1762638312059,0.66455969,102320.0,102310.0,0.17448928]
[1762638312259,0.64178498,102320.0,102310.0,0.17448928]
[1762638312965,0.42939,102320.0,102310.0,0.17548928]
[1762638314363,0.42939,102320.0,102310.0,0.29012066]
[1762638315762,0.41109,102320.0,102310.0,0.29012066]
[1762638316064,0.41109,102320.0,102310.0,0.31352066]
[1762638319467,0.42939,102320.0,102310.0,0.31352066]
[1762638319664,0.41344,102320.0,102310.0,0.31352066]
[1762638320666,0.05264,102320.0,102310.0,0.31352066]
[1762638324671,0.06859,102320.0,102310.0,0.31352066]
[1762638328572,0.06859,102320.0,102310.0,0.3834286]
[1762638328879,0.42991702,102330.0,102320.0,0.1055634]
[1762638329072,0.42991702,102330.0,102320.0,0.22019478]
[1762638329274,0.42991702,102330.0,102320.0,0.76755478]
[1762638330381,0.42991702,102330.0,102320.0,0.88218386]
[1762638330979,0.43091702,102330.0,102320.0,0.88218386]
[1762638335078,0.07505827,102340.0,102330.0,0.105554]
[1762638335282,0.07505827,102340.0,102330.0,0.69561446]
[1762638336277,0.00687827,102340.0,102330.0,0.69561446]
[1762638336486,0.00687827,102340.0,102330.0,0.7694224]
[1762638336986,0.07505827,102340.0,102330.0,0.7655224]
[1762638337182,0.07605827,102340.0,102330.0,0.69561446]
[1762638337378,0.00787827,102340.0,102330.0,0.69561446]
[1762638339888,0.001,102340.0,102330.0,0.7655224]
[1762638340296,0.001,102340.0,102330.0,0.53626194]
[1762638342991,0.36748981,102360.0,102330.0,0.78054194]
[1762638343292,0.43566981,102360.0,102350.0,0.0977349]
[1762638343590,0.43566981,102360.0,102350.0,0.6450149]
[1762638343778,0.43566981,102360.0,102350.0,0.87427536]
[1762638343978,0.43566981,102360.0,102350.0,0.32699536]
[1762638344289,0.43566981,102360.0,102350.0,0.95065622]
[1762638344486,0.43566981,102360.0,102350.0,0.62366086]
[1762638344687,0.43566981,102360.0,102350.0,0.73829109]
[1762638344985,0.53339511,102360.0,102350.0,0.73829109]
[1762638345289,0.53439511,102360.0,102350.0,0.73829109]
[1762638345589,0.43666981,102360.0,102350.0,0.73829109]
[1762638345986,0.43666981,102360.0,102350.0,0.83602599]
[1762638346183,0.43666981,102360.0,102350.0,0.88696599]
[1762638346386,0.43866981,102360.0,102350.0,0.88696599]
[1762638348780,0.43866981,102360.0,102350.0,0.77233576]
[1762638349184,0.43866981,102360.0,102350.0,0.88696599]
[1762638349785,0.43842981,102360.0,102350.0,0.88696599]
[1762638349991,0.45974981,102360.0,102350.0,0.88696599]
[1762638353293,0.37048981,102360.0,102350.0,1.12701645]
[1762638353482,0.003,102360.0,102350.0,1.61742622]
[1762638354290,0.36760992,102370.0,102360.0,0.1306653]
[1762638354482,0.36760992,102370.0,102360.0,0.60416576]
[1762638354684,0.43554992,102370.0,102360.0,0.90712576]
[1762638354983,0.45686992,102370.0,102360.0,0.90712576]
[1762638355183,0.45686992,102370.0,102360.0,0.35992576]
[1762638355493,0.40435992,102370.0,102360.0,0.91657576]
[1762638355684,0.40435992,102370.0,102360.0,0.36937576]
[1762638355882,0.46748992,102370.0,102360.0,0.90712576]
[1762638356691,0.47048992,102370.0,102360.0,0.90712576]
[1762638358091,0.47048992,102370.0,102360.0,0.90708576]
[1762638361784,0.47048992,102370.0,102360.0,0.35992576]
[1762638361991,0.47048992,102370.0,102360.0,0.90708576]
[1762638362189,0.47048992,102370.0,102360.0,0.35992576]
[1762638362491,0.47048992,102370.0,102360.0,0.90704576]
[1762638366493,0.47048992,102370.0,102360.0,0.35992576]
[1762638366686,0.47048992,102370.0,102360.0,0.90704576]
[1762638367702,0.47048992,102370.0,102360.0,0.35992586]
[1762638367898,0.47048992,102370.0,102360.0,0.90704586]
[1762638370095,0.47048992,102370.0,102360.0,1.05534586]
[1762638371896,0.47048992,102370.0,102360.0,0.2789654]
[1762638372103,0.47048992,102370.0,102360.0,1.05530586]
[1762638372812,0.47048992,102370.0,102360.0,1.05530566]
[1762638373101,0.47048992,102370.0,102360.0,0.90700566]
[1762638377002,0.47048992,102370.0,102360.0,0.35992566]
[1762638377207,0.47048992,102370.0,102360.0,0.90700566]
[1762638379906,0.40627992,102370.0,102360.0,0.90700566]
[1762638380101,0.58404015,102370.0,102350.0,0.07638086]
[1762638380298,0.58404015,102370.0,102350.0,0.60912]
[1762638380299,0.66995543,102360.0,102350.0,0.60912]
[1762638380502,0.5553252,102360.0,102350.0,0.80321115]
[1762638380696,0.5553252,102360.0,102350.0,0.14150092]
[1762638380697,0.66995543,102360.0,102350.0,0.14150092]
[1762638380903,0.66995543,102360.0,102350.0,0.80321115]
[1762638381798,0.4576,102360.0,102350.0,0.90094595]
[1762638382106,0.57323023,102360.0,102350.0,0.90094595]
[1762638382305,0.67095543,102360.0,102350.0,0.90094595]
[1762638383106,0.67195543,102360.0,102350.0,0.90094595]
[1762638383306,0.57423023,102360.0,102350.0,0.90094595]
[1762638384107,0.67195543,102360.0,102350.0,0.90094595]
[1762638386498,0.57423023,102360.0,102350.0,0.90094595]
[1762638387498,0.67195553,102360.0,102350.0,0.90094595]
[1762638388510,0.67195553,102360.0,102350.0,0.90102595]
[1762638388805,0.67195553,102360.0,102350.0,0.78639572]
[1762638391010,0.57423023,102360.0,102350.0,0.78639572]
[1762638391805,0.67195543,102360.0,102350.0,0.78639572]
[1762638392307,0.5573252,102360.0,102350.0,0.78639572]
[1762638395008,0.67192161,102360.0,102350.0,0.78639572]
[1762638398010,0.67192161,102360.0,102350.0,0.72435572]
[1762638398207,0.67192161,102360.0,102350.0,0.07946092]
[1762638398412,0.1925848,102350.0,102340.0,0.68340372]
[1762638398712,0.5533848,102350.0,102340.0,0.68340372]
[1762638402019,0.66798121,102350.0,102340.0,0.03846702]
[1762638402209,0.66798121,102350.0,102340.0,0.00014702]
[1762638403420,0.66798121,102350.0,102340.0,0.09789152]
[1762638403625,0.66898121,102350.0,102340.0,0.09789152]
[1762638404426,0.69202765,102350.0,102340.0,0.09789152]
[1762638405327,0.69302765,102350.0,102340.0,0.09789152]
[1762638409930,0.66998121,102350.0,102340.0,0.09789152]
[1762638410130,0.69304215,102350.0,102340.0,0.09789152]
[1762638410830,0.69304215,102350.0,102340.0,0.11012152]
[1762638411127,0.69304215,102350.0,102340.0,0.09789152]
[1762638411630,0.69304215,102350.0,102340.0,0.00014702]
[1762638412338,0.69304215,102350.0,102340.0,0.09789162]
[1762638414334,0.69304215,102350.0,102340.0,0.00014702]
[1762638414535,0.69304215,102350.0,102340.0,0.09789162]
[1762638414835,0.69304215,102350.0,102330.0,0.09785158]
[1762638414836,0.1838846,102340.0,102330.0,0.09785158]
[1762638415024,0.65928101,102340.0,102330.0,0.00010358]
[1762638415220,0.68234476,102340.0,102330.0,0.00010358]
[1762638415821,0.68234476,102340.0,102330.0,0.09785778]
[1762638416023,0.68234476,102340.0,102330.0,0.00010358]
[1762638416228,0.68234476,102340.0,102330.0,0.09785778]
[1762638416733,0.68234476,102340.0,102330.0,0.00010358]
[1762638417236,0.68241764,102340.0,102330.0,3.58e-06]
[1762638417832,0.68240803,102340.0,102330.0,3.58e-06]
[1762638418236,0.68440803,102340.0,102330.0,3.58e-06]
[1762638422145,0.68440803,102340.0,102330.0,0.09775768]
[1762638424545,0.61875803,102340.0,102330.0,3.58e-06]
[1762638425741,0.61875803,102340.0,102330.0,0.09775768]
[1762638425942,0.68388803,102340.0,102330.0,0.09775768]
[1762638427435,0.61875803,102340.0,102330.0,3.58e-06]
[1762638429648,0.1830441,102330.0,102320.0,0.00014702]
[1762638429853,0.68149465,102330.0,102320.0,0.00014702]
[1762638430445,0.68149465,102330.0,102320.0,0.09791072]
[1762638430949,0.68149465,102330.0,102320.0,0.00014702]
[1762638431557,0.68149465,102330.0,102320.0,0.09791072]
[1762638433350,0.68249465,102330.0,102320.0,0.09791072]
[1762638433556,0.68349465,102330.0,102320.0,0.09791072]
[1762638437658,0.68349465,102330.0,102320.0,0.00014702]
[1762638440855,0.68349465,102330.0,102320.0,0.09791072]
[1762638441264,0.1830537,102320.0,102310.0,0.60571919]
[1762638441466,0.68150425,102320.0,102310.0,0.60571919]
[1762638444167,0.68150425,102320.0,102310.0,0.50794589]
[1762638444368,0.68350425,102320.0,102310.0,0.50794589]
[1762638445067,1.04430425,102320.0,102310.0,0.50794589]
[1762638446378,1.04430425,102320.0,102310.0,0.60571919]
[1762638446879,1.04430425,102320.0,102310.0,0.61437919]
[1762638451481,1.04430425,102320.0,102310.0,0.60571919]
[1762638454289,0.92970784,102320.0,102310.0,0.60571919]
[1762638454490,1.1590915,102320.0,102310.0,0.60571919]
[1762638455790,1.04439967,102320.0,102310.0,0.72041102]
[1762638455987,0.82760414,102320.0,102310.0,0.72041102]
[1762638456193,0.77619,102320.0,102310.0,0.72041102]
[1762638456493,0.80455,102320.0,102310.0,0.72041102]
[1762638456992,0.80455,102320.0,102310.0,0.83510285]
[1762638457195,0.80455,102320.0,102310.0,0.72041102]
[1762638458690,1.01700553,102320.0,102310.0,0.60571919]
[1762638458993,1.01700553,102320.0,102310.0,1.15315919]
[1762638459194,1.01700553,102320.0,102310.0,1.05538589]
[1762638459797,1.01600553,102320.0,102310.0,1.05538589]
[1762638460006,1.01500553,102320.0,102310.0,1.05538589]
[1762638460794,1.15266582,102320.0,102310.0,0.07672338]
[1762638461098,0.1717433,102310.0,102300.0,0.79366862]
[1762638461296,0.64723513,102310.0,102300.0,0.79366862]
[1762638463193,0.64723513,102310.0,102300.0,0.86357656]
[1762638463698,0.64723513,102310.0,102300.0,0.71527656]
[1762638464199,0.64723513,102310.0,102300.0,0.16783656]
[1762638464399,0.64723513,102310.0,102300.0,0.71527656]
[1762638464695,0.64723513,102310.0,102300.0,0.79289128]
[1762638465603,0.64723513,102310.0,102300.0,0.24545128]
[1762638465793,0.64723513,102310.0,102300.0,0.72298334]
[1762638466696,0.64723513,102310.0,102300.0,0.72298454]
[1762638467004,0.64723513,102310.0,102300.0,0.62520174]
[1762638467395,0.64723513,102310.0,102300.0,0.72298454]
[1762638468604,0.64823513,102310.0,102300.0,0.72298454]
[1762638468794,0.64923513,102310.0,102300.0,0.72298454]
[1762638469304,0.64723513,102310.0,102300.0,0.72298454]
[1762638471297,0.6702086,102310.0,102300.0,0.72298454]
[1762638471894,0.64723513,102310.0,102300.0,0.72298454]
[1762638480100,0.64723513,102310.0,102300.0,0.62520174]
[1762638480311,0.6702023,102310.0,102300.0,0.62520174]
[1762638481004,0.6702023,102310.0,102300.0,0.17554454]
[1762638481402,0.6702023,102310.0,102300.0,0.07776174]
[1762638481905,0.6702023,102310.0,102300.0,0.17554454]
[1762638482108,0.6712023,102310.0,102300.0,0.17554454]
[1762638482521,0.6722023,102310.0,102300.0,0.17554454]
[1762638485902,0.574429,102310.0,102300.0,0.17554454]
[1762638486102,0.6722023,102310.0,102300.0,0.17554454]
[1762638490616,0.67273627,102310.0,102300.0,0.17554454]
[1762638492016,1.03353627,102310.0,102300.0,0.17554454]
[1762638493410,0.82107114,102310.0,102300.0,0.29023637]
[1762638494318,0.93576297,102310.0,102300.0,0.29023637]
[1762638494513,0.82107114,102310.0,102300.0,0.29023637]
[1762638494713,0.91226183,102310.0,102300.0,0.29023637]
[1762638495419,0.79757,102310.0,102300.0,0.29023637]
[1762638495622,0.79757,102310.0,102300.0,0.4049282]
[1762638496420,0.7236,102310.0,102300.0,0.6492882]
[1762638496809,0.7226,102310.0,102300.0,0.6492882]
[1762638497016,0.7226,102310.0,102300.0,1.45175899]
[1762638497211,0.3608,102320.0,102310.0,0.0977728]
[1762638497416,0.3608,102320.0,102310.0,0.16776107]
[1762638497616,0.3608,102320.0,102310.0,0.2824529]
[1762638497922,0.3608,102320.0,102310.0,0.64150473]
[1762638498228,0.3608,102320.0,102310.0,0.39714473]
[1762638498524,0.3608,102320.0,102310.0,0.64150473]
[1762638498724,0.3866,102320.0,102310.0,0.2824529]
[1762638498923,0.3866,102320.0,102310.0,0.2844529]
[1762638499319,0.4276,102320.0,102310.0,0.2844529]
[1762638499520,0.4276,102320.0,102310.0,0.5298129]
[1762638500118,0.4276,102320.0,102310.0,0.2854529]
[1762638500323,0.4276,102320.0,102310.0,0.21546463]
[1762638500825,0.3608,102320.0,102310.0,0.33015646]
[1762638501419,0.43226702,102330.0,102320.0,0.0977636]
[1762638501623,0.43226702,102330.0,102320.0,0.32714726]
[1762638501624,0.07146702,102330.0,102320.0,0.32714726]
[1762638502528,0.00014702,102330.0,102320.0,0.32714726]
[1762638502722,0.00014702,102330.0,102320.0,0.32814726]
[1762638503121,2e-08,102330.0,102320.0,1.86618033]
[1762638503522,7.288e-05,102340.0,102330.0,0.0977541]
[1762638503717,7.288e-05,102340.0,102330.0,1.00202728]
[1762638503921,7.288e-05,102340.0,102330.0,1.60202728]
[1762638504121,0.4276,102360.0,102350.0,0.097735]
[1762638504331,0.4276,102360.0,102350.0,0.75982683]
[1762638504630,0.37644,102360.0,102350.0,0.75982683]
[1762638504827,0.3608,102360.0,102350.0,1.00406683]
[1762638505039,0.07375694,102370.0,102360.0,0.0977254]
[1762638505235,0.07380873,102370.0,102360.0,0.21241723]
[1762638505526,0.07380873,102370.0,102360.0,0.32710906]
[1762638505729,0.43460873,102370.0,102360.0,0.32710906]
[1762638506128,0.07380873,102370.0,102360.0,0.32710906]
[1762638506834,0.07680873,102370.0,102360.0,0.33704464]
[1762638507027,0.43760873,102370.0,102360.0,0.33704464]
[1762638509120,0.43760873,102370.0,102360.0,0.32710906]
[1762638511030,0.55230056,102370.0,102360.0,0.75969723]
[1762638511527,0.55230056,102370.0,102360.0,0.83662558]
[1762638511930,0.43760873,102370.0,102360.0,0.83662558]
[1762638514430,0.43760873,102370.0,102360.0,0.72193375]
[1762638514835,0.43760873,102370.0,102360.0,0.83648809]
[1762638515937,0.53532463,102370.0,102360.0,0.17465375]
[1762638516133,0.43760873,102370.0,102360.0,0.72185375]
[1762638516934,0.43760873,102370.0,102360.0,0.83640809]
[1762638518232,0.43760873,102370.0,102360.0,0.72185375]
[1762638521037,0.53532463,102370.0,102360.0,0.17465375]
[1762638521246,0.53532463,102370.0,102360.0,0.72181375]
[1762638523540,0.64987897,102370.0,102360.0,0.72181375]
[1762638523741,0.53532463,102370.0,102360.0,0.72181375]
[1762638523942,0.53532463,102370.0,102360.0,0.83636809]
[1762638523943,0.43760873,102370.0,102360.0,0.83636809]
[1762638530146,0.55864436,102370.0,102360.0,0.83636809]
[1762638531153,0.55864436,102370.0,102360.0,0.98466809]
[1762638532750,0.55864436,102370.0,102360.0,0.87011375]
[1762638533654,0.55183444,102370.0,102360.0,0.87011375]
[1762638534348,0.55183444,102370.0,102360.0,0.32295375]
[1762638534551,0.55183444,102370.0,102360.0,0.87011375]
[1762638534752,0.45411864,102370.0,102360.0,0.87011375]
[1762638535761,0.55183434,102370.0,102360.0,0.87011375]
[1762638536162,0.45411864,102370.0,102360.0,0.87011375]
[1762638536966,0.45411864,102370.0,102360.0,0.72181375]
[1762638537166,0.55183444,102370.0,102360.0,0.72181375]
[1762638538466,0.45411864,102370.0,102360.0,0.72181375]
[1762638539167,0.55183444,102370.0,102360.0,0.72181375]
[1762638540372,0.45411864,102370.0,102360.0,0.72181375]
[1762638541272,0.55183434,102370.0,102360.0,0.72181375]
[1762638541671,0.55183434,102370.0,102360.0,0.07692835]
[1762638541873,0.66638868,102370.0,102360.0,0.6448853]
[1762638543875,0.55183434,102370.0,102360.0,0.6448853]
[1762638544578,0.55183434,102370.0,102360.0,0.72186055]
[1762638545171,0.66638868,102370.0,102360.0,0.72186055]
[1762638546078,1.02718868,102370.0,102360.0,0.72186055]
[1762638546275,0.91263434,102370.0,102360.0,0.72186055]
[1762638546479,1.02718868,102370.0,102360.0,0.72186055]
[1762638547185,0.91263434,102370.0,102360.0,0.72186055]
[1762638549680,0.81491864,102370.0,102360.0,0.72186055]
[1762638552475,0.91263434,102370.0,102360.0,0.72186055]
[1762638553587,0.81491864,102370.0,102360.0,0.72186055]
[1762638556072,0.91263434,102370.0,102360.0,0.72186055]
[1762638556990,0.81491864,102370.0,102360.0,0.72186055]
[1762638558489,0.45411864,102370.0,102360.0,0.72186055]
[1762638568697,0.55183434,102370.0,102360.0,0.72186055]
[1762638568995,0.45411864,102370.0,102360.0,0.72186055]
[1762638569199,0.45411864,102370.0,102360.0,0.83641489]
[1762638570199,0.45411864,102370.0,102360.0,0.72186055]
[1762638572991,0.45411864,102370.0,102360.0,0.83641489]
[1762638573386,0.45411864,102370.0,102360.0,0.72186055]
[1762638573591,0.45411864,102370.0,102360.0,0.83641489]
[1762638574395,0.56867822,102370.0,102360.0,0.83642013]
[1762638575789,0.45411864,102370.0,102360.0,0.83642013]
[1762638575984,0.56867822,102370.0,102360.0,0.83642013]
[1762638576599,0.45411864,102370.0,102360.0,0.83642013]
[1762638576797,0.56867822,102370.0,102360.0,0.83642013]
[1762638577691,0.45411864,102370.0,102360.0,0.83642013]
[1762638577990,0.43079881,102370.0,102360.0,0.83642013]
[1762638580401,0.43079881,102370.0,102360.0,0.90618965]
[1762638580701,0.43079881,102370.0,102360.0,0.83642013]
[1762638580898,0.43079881,102370.0,102360.0,0.90618965]
[1762638584303,0.45413574,102370.0,102360.0,0.83642013]
[1762638589007,0.43079881,102370.0,102360.0,0.83642013]
[1762638589207,0.45413562,102370.0,102360.0,0.83642013]
[1762638591109,0.45413562,102370.0,102360.0,0.28926013]
[1762638591406,0.5686952,102370.0,102360.0,0.83642013]
[1762638591708,0.45413562,102370.0,102360.0,0.83642013]
[1762638593305,0.5686952,102370.0,102360.0,0.83642013]
[1762638593609,0.45413562,102370.0,102360.0,0.83642013]
[1762638593909,0.5686952,102370.0,102360.0,0.83642013]
[1762638598823,0.2078952,102370.0,102360.0,0.83642013]
[1762638599020,0.5686952,102370.0,102360.0,0.83642013]
[1762638600724,0.54535839,102370.0,102360.0,0.83642013]
[1762638602122,0.43079881,102370.0,102360.0,0.95097971]
[1762638602330,0.00319881,102370.0,102360.0,1.49610881]
[1762638602535,0.00319881,102370.0,102360.0,1.88299867]
[1762638602825,0.00319881,102370.0,102360.0,0.80963951]
[1762638602826,0.05987881,102370.0,102360.0,0.80963951]
[1762638603025,0.05987881,102370.0,102360.0,0.95097971]
[1762638603322,0.05987881,102370.0,102360.0,1.02095537]
[1762638603718,0.42067881,102370.0,102360.0,1.02095537]
[1762638604330,0.05987881,102370.0,102360.0,0.79183621]
[1762638604518,0.42067881,102370.0,102360.0,0.79183621]
[1762638604726,0.42067881,102370.0,102360.0,1.02095537]
[1762638604929,0.42067881,102370.0,102360.0,0.24467621]
[1762638605125,0.42067881,102370.0,102360.0,0.90635579]
[1762638606423,0.53523839,102370.0,102360.0,0.35923589]
[1762638606729,0.53523839,102370.0,102360.0,0.83638023]
[1762638606926,0.53523839,102370.0,102360.0,0.17470065]
[1762638607118,0.65624967,102370.0,102360.0,0.62409525]
[1762638607320,0.54169009,102370.0,102360.0,0.62409525]
[1762638607521,0.65624967,102370.0,102360.0,0.62409525]
[1762638609629,0.65624967,102370.0,102360.0,0.72182065]
[1762638610530,0.65624967,102370.0,102360.0,0.17470065]
[1762638614629,0.77080925,102370.0,102360.0,0.07697525]
[1762638614828,0.1119749,102360.0,102350.0,0.0977344]
[1762638615021,0.76973944,102360.0,102350.0,0.0977344]
[1762638615226,0.1565249,102350.0,102340.0,0.7596044]
[1762638615428,0.63188448,102350.0,102340.0,0.7596044]
[1762638616633,0.63188448,102350.0,102340.0,0.2124444]
[1762638616830,0.63288448,102350.0,102340.0,0.7596044]
[1762638617033,0.63288448,102350.0,102340.0,0.64504482]
[1762638617234,0.63288448,102350.0,102340.0,0.7596044]
[1762638617533,0.63288448,102350.0,102340.0,0.83745466]
[1762638617832,0.63288448,102350.0,102340.0,0.83845466]
[1762638618339,0.63288448,102350.0,102340.0,0.72389508]
[1762638623930,0.63288448,102350.0,102340.0,0.17673508]
[1762638628536,0.63288448,102350.0,102340.0,0.07899728]
[1762638629240,0.63288448,102350.0,102340.0,0.17674178]
[1762638633654,0.63288448,102350.0,102340.0,0.07899728]
[1762638633838,0.77079936,102350.0,102340.0,0.00899728]
[1762638634041,0.65624067,102350.0,102340.0,0.001]
[1762638636349,0.65633105,102350.0,102340.0,0.001]
[1762638637046,0.65633105,102350.0,102340.0,0.04605]
[1762638638449,0.65633105,102350.0,102340.0,0.1437946]
[1762638641050,1.01713105,102350.0,102340.0,0.1437946]
[1762638641743,1.01713105,102350.0,102340.0,0.001]
[1762638647163,0.26986456,102340.0,102330.0,0.07753569]
[1762638647459,0.65402075,102340.0,102330.0,0.07753569]
[1762638649356,0.65507254,102340.0,102330.0,0.07753569]
[1762638649859,0.65707254,102340.0,102330.0,0.00014702]
[1762638652363,0.65707254,102340.0,102330.0,0.09789992]
[1762638652657,0.65707254,102340.0,102330.0,0.00014702]
[1762638653559,0.65707254,102340.0,102330.0,0.07827853]
[1762638655163,0.65707254,102340.0,102330.0,0.00014702]
[1762638655362,0.1552325,102320.0,102310.0,0.6887965]
[1762638655661,0.99148246,102320.0,102310.0,0.6887965]
[1762638656965,0.99148246,102320.0,102310.0,0.6907965]
[1762638657356,0.99148246,102320.0,102310.0,0.76952204]
[1762638658065,0.99148246,102320.0,102310.0,0.77052204]
[1762638658665,0.99148246,102320.0,102310.0,0.76852204]
[1762638659166,0.99148246,102320.0,102310.0,0.76752204]
[1762638660270,1.01488095,102320.0,102310.0,0.76752204]
[1762638662255,1.01588095,102320.0,102310.0,0.76752204]
[1762638662471,1.01788095,102320.0,102310.0,0.76752204]
[1762638662684,1.01788095,102320.0,102310.0,0.66975554]
[1762638663271,1.01788095,102320.0,102310.0,0.64753554]
[1762638663674,1.01788095,102320.0,102310.0,0.62608554]
[1762638664070,1.01788095,102320.0,102310.0,0.07872554]
[1762638664272,0.155972,102310.0,102300.0,0.14300262]
[1762638664471,0.63142196,102310.0,102300.0,0.14300262]
[1762638666384,0.63142196,102310.0,102300.0,0.21967092]
[1762638666776,0.419,102310.0,102300.0,0.21967092]
[1762638667081,0.3849,102310.0,102300.0,0.21967092]
[1762638667384,0.40642,102310.0,102300.0,0.34599088]
[1762638668082,0.5177721,102310.0,102300.0,0.21967692]
[1762638668377,0.63442206,102310.0,102300.0,0.76707692]
[1762638669175,0.5197721,102310.0,102300.0,0.76707692]
[1762638669984,0.5197721,102310.0,102300.0,0.21967692]
[1762638670174,0.5197721,102310.0,102300.0,0.76711692]
[1762638671383,0.5197721,102310.0,102300.0,0.21967692]
[1762638671584,0.5197721,102310.0,102300.0,0.76711692]
[1762638672378,0.12868756,102310.0,102300.0,0.76711692]
[1762638672582,0.0612,102310.0,102300.0,0.69044862]
[1762638673281,0.1589725,102310.0,102300.0,0.69044862]